bitfinex-derivatives/quotes_SOLF0:USTF0_20250114
["timestamp","ask_amount","ask_price","bid_price","bid_amount"]
[1736820131088,61.19909327,182.2,182.13,29.07476901]
[1736820131391,21.60536759,182.22,182.19,33.82050544]
[1736820131584,21.60536759,182.22,182.19,33.78050318]
[1736820131779,21.60536759,182.22,182.19,33.76050318]
[1736820131983,21.60536759,182.22,182.21,2.7452]
[1736820132588,138.31159525,182.24,182.23,2.7449]
[1736820132784,105.56629525,182.24,182.23,2.7449]
[1736820133585,379.00473238,182.34,182.23,2.7449]
[1736820133586,379.00473238,182.34,182.23,7.14878582]
[1736820133987,33.82050544,182.36,182.24,7.14878582]
[1736820134286,3.1476527,182.33,182.25,7.14878582]
[1736820134888,3.61217435,182.43,182.26,7.14878582]
[1736820135088,33.82050544,182.39,182.26,7.14878582]
[1736820135292,33.82050544,182.39,182.26,56.34038222]
[1736820135586,33.82050544,182.39,182.37,423.90747167]
[1736820135993,8.8,182.41,182.37,423.90747167]
[1736820136185,42.62050544,182.41,182.38,143.68832793]
[1736820136392,42.62050544,182.41,182.38,472.58205595]
[1736820136793,42.62050544,182.41,182.38,423.90747167]
[1736820136992,33.82050544,182.41,182.38,423.90747167]
[1736820137493,33.82050544,182.41,182.26,46.4471964]
[1736820137494,36.99340544,182.44,182.37,7.30874951]
[1736820138396,36.99340544,182.44,182.4,7.30874951]
[1736820138597,36.99340544,182.44,182.34,10.05194951]
[1736820139197,36.99340544,182.44,182.36,2.7429]
[1736820139994,24.74741217,182.44,182.32,7.30874951]
[1736820140392,24.74741217,182.44,182.35,2.7431]
[1736820140695,33.82050544,182.47,182.3,33.82050544]
[1736820141598,33.82050544,182.47,182.37,2.7428]
[1736820142794,33.82050544,182.47,182.38,2.7426]
[1736820143594,1.6849,182.46,182.38,2.7426]
[1736820144499,1.6849,182.46,182.3,33.82050544]
[1736820144699,1.6849,182.46,182.39,2.7425]
[1736820145495,3.11525526,182.45,182.39,2.7425]
[1736820146195,1.6849,182.46,182.39,2.7425]
[1736820146900,1.6849,182.46,182.3,41.12925495]
[1736820147100,3.11703217,182.45,182.4,2.7424]
[1736820147501,1.6849,182.46,182.4,2.7424]
[1736820147698,1.6849,182.46,182.3,33.82050544]
[1736820147998,1.6849,182.46,182.33,33.82050544]
[1736820148501,1.6849,182.46,182.44,2.7418]
[1736820148797,96.8002,182.55,182.36,33.82050544]
[1736820148798,1.6758,182.5,182.36,33.82050544]
[1736820148998,1.6758,182.5,182.37,1.5649]
[1736820149206,1.6758,182.5,182.39,33.82050544]
[1736820149400,1.6758,182.5,182.39,20.77229964]
[1736820149589,1.6758,182.5,182.47,2.7413]
[1736820149793,29.25229964,182.54,182.47,2.7413]
[1736820149987,20.77229964,182.51,182.4,12.82496969]
[1736820150199,20.77229964,182.51,182.38,58.37647519]
[1736820150200,20.77229964,182.51,182.41,7.30874951]
[1736820150603,3.12337728,182.5,182.41,7.30874951]
[1736820151299,3.12337728,182.5,182.42,12.83191257]
[1736820151998,3.12337728,182.53,182.44,7.30874951]
[1736820152694,3.12337728,182.53,182.45,5.52316306]
[1736820152894,2.7406,182.52,182.45,8.26476306]
[1736820153094,2.7406,182.52,182.47,7.30874951]
[1736820153297,3.12337728,182.53,182.47,7.30874951]
[1736820153797,3.12337728,182.53,182.48,57.32791652]
[1736820153999,3.12337728,182.52,182.48,60.06901652]
[1736820154602,3.12337728,182.52,182.49,12.83191257]
[1736820154803,3.12337728,182.51,182.49,12.83191257]
[1736820155299,3.12337728,182.5,182.49,12.83191257]
[1736820155495,3.12337728,182.5,182.48,2.7411]
[1736820155694,20.77229964,182.54,182.47,87.70499414]
[1736820155898,2.7405,182.53,182.47,90.44629414]
[1736820156203,24.38447399,182.54,182.49,49.91813925]
[1736820156503,2.7407,182.51,182.49,49.91813925]
[1736820156701,23.51299964,182.51,182.5,13.00961174]
[1736820157902,23.51299964,182.51,182.47,7.56138471]
[1736820157903,2.7409,182.5,182.47,7.56138471]
[1736820158501,6.35307435,182.5,182.47,7.56138471]
[1736820158708,6.35307435,182.5,182.4,42.96931434]
[1736820158709,3.61217435,182.5,182.4,42.96931434]
[1736820159007,2.7413,182.47,182.4,42.96931434]
[1736820159199,6.35347435,182.47,182.4,42.96931434]
[1736820159804,6.35347435,182.47,182.37,1.5649]
[1736820159805,3.61217435,182.45,182.37,1.5649]
[1736820160504,3.61217435,182.44,182.37,22.33719964]
[1736820161307,5.25624027,182.48,182.37,22.33719964]
[1736820161501,20.77229964,182.51,182.37,1.5649]
[1736820161697,5.28128607,182.47,182.37,1.5649]
[1736820161905,2.19362028,182.46,182.4,2.7422]
[1736820162106,7.47490635,182.45,182.4,2.7422]
[1736820162308,2.19362028,182.44,182.4,2.7422]
[1736820162605,2.19362028,182.43,182.41,2.7422]
[1736820162905,5.28128607,182.46,182.41,2.7422]
[1736820163105,5.28128607,182.44,182.41,2.7422]
[1736820163408,2.19363214,182.43,182.41,2.7422]
[1736820163708,2.19363214,182.42,182.41,2.7422]
[1736820164108,2.19363214,182.42,182.38,2.7425]
[1736820164403,2.19363214,182.41,182.34,20.77229964]
[1736820164608,5.34891405,182.4,182.38,2.7426]
[1736820165303,5.34891405,182.39,182.37,2.7428]
[1736820165703,5.34891405,182.4,182.37,2.7428]
[1736820165904,5.34891405,182.4,182.39,2.7425]
[1736820166108,5.34891405,182.44,182.37,20.77229964]
[1736820166301,5.34891405,182.45,182.41,20.77229964]
[1736820166703,2.7408,182.51,182.45,2.7416]
[1736820167711,2.7408,182.51,182.41,20.77229964]
[1736820167903,2.7408,182.51,182.46,2.7415]
[1736820168209,2.7409,182.5,182.41,20.77229964]
[1736820168508,2.7409,182.5,182.45,2.7416]
[1736820169503,1.6097,182.53,182.41,20.77229964]
[1736820169703,3.3043,182.56,182.41,20.77229964]
[1736820169905,3.3043,182.56,182.42,1.6506]
[1736820170105,2.7403,182.54,182.42,1.6506]
[1736820170602,2.7403,182.54,182.48,2.7411]
[1736820172007,2.7403,182.54,182.42,1.6506]
[1736820172211,2.7403,182.54,182.49,2.741]
[1736820173906,3.3043,182.56,182.49,2.741]
[1736820174111,2.7405,182.53,182.49,2.741]
[1736820180212,2.7405,182.53,182.44,12.97807259]
[1736820180410,12.97807259,182.53,182.42,1.6506]
[1736820180712,12.97807259,182.5,182.38,12.97807259]
[1736820181720,12.97807259,182.47,182.35,1.5618]
[1736820181915,12.97807259,182.5,182.35,1.5618]
[1736820181916,12.97807259,182.44,182.35,1.5618]
[1736820182216,2.7421,182.43,182.38,2.7427]
[1736820184417,7.8,182.49,182.42,2.742]
[1736820184719,22.45980523,182.52,182.37,20.78490523]
[1736820185414,2.7412,182.48,182.37,20.78490523]
[1736820185617,22.45980523,182.52,182.37,20.78490523]
[1736820185825,20.78490523,182.49,182.35,1.5618]
[1736820186014,3.4031,182.48,182.37,2.7427]
[1736820186417,3.4031,182.48,182.34,114.86490523]
[1736820186614,3.4031,182.48,182.37,20.78490523]
[1736820187218,6.1443,182.48,182.37,20.78490523]
[1736820188822,6.1443,182.48,182.42,2.7419]
[1736820189026,3.4031,182.48,182.42,2.7419]
[1736820189220,3.4031,182.48,182.37,20.78490523]
[1736820189416,3.4031,182.48,182.34,114.86490523]
[1736820189625,2.7413,182.47,182.42,2.7421]
[1736820190915,3.4031,182.48,182.34,114.86490523]
[1736820191119,1.6749,182.52,182.39,20.78490523]
[1736820191318,1.6749,182.52,182.4,1.6698]
[1736820191728,2.7412,182.48,182.43,2.7418]
[1736820191918,1.6749,182.52,182.4,1.6698]
[1736820192731,2.7409,182.5,182.44,2.7416]
[1736820192923,7.62,182.56,182.42,20.78490523]
[1736820193725,7.62,182.56,182.48,2.7411]
[1736820194429,2.7403,182.54,182.42,20.78490523]
[1736820195428,2.7401,182.55,182.42,20.78490523]
[1736820195623,2.7401,182.55,182.49,2.7409]
[1736820196824,22.51170523,182.58,182.49,2.7409]
[1736820197129,2.7403,182.54,182.49,2.7409]
[1736820197726,2.7403,182.54,182.42,20.78490523]
[1736820197928,2.7403,182.54,182.5,2.7409]
[1736820200028,2.74,182.56,182.52,2.7406]
[1736820200330,22.51170523,182.58,182.45,20.78490523]
[1736820200528,22.51170523,182.58,182.42,20.78490523]
[1736820201428,1.7268,182.58,182.46,2.7415]
[1736820201630,20.78490523,182.53,182.4,1.6698]
[1736820201830,7.48,182.52,182.4,1.6698]
[1736820202026,2.7415,182.46,182.42,2.742]
[1736820202627,2.7413,182.48,182.43,2.7418]
[1736820202824,7.48,182.52,182.4,1.6698]
[1736820203334,2.7407,182.51,182.43,2.7418]
[1736820203534,7.48,182.52,182.42,12.98042494]
[1736820204433,12.98042494,182.51,182.4,1.6698]
[1736820204629,12.98042494,182.51,182.39,12.98042494]
[1736820204832,4.9606,182.5,182.39,12.98042494]
[1736820205035,2.7415,182.47,182.42,2.7421]
[1736820209837,12.98042494,182.48,182.39,12.98042494]
[1736820210136,2.7416,182.46,182.41,2.7422]
[1736820212229,2.7416,182.46,182.39,12.98042494]
[1736820212431,2.7413,182.47,182.42,2.742]
[1736820213035,4.9606,182.5,182.39,12.98042494]
[1736820213236,4.9606,182.5,182.45,2.7415]
[1736820213736,4.9606,182.5,182.44,2.7417]
[1736820214326,4.9606,182.5,182.39,12.98042494]
[1736820214526,2.7412,182.48,182.43,2.7419]
[1736820217035,2.7412,182.48,182.39,12.98042494]
[1736820217236,2.7412,182.48,182.44,2.7417]
[1736820218638,4.9606,182.5,182.39,12.98042494]
[1736820219238,2.7413,182.47,182.42,2.742]
[1736820219534,17.94102494,182.5,182.36,12.98042494]
[1736820219837,2.742,182.43,182.36,12.98042494]
[1736820220635,2.742,182.43,182.38,2.7427]
[1736820221239,4.9606,182.5,182.36,12.98042494]
[1736820221432,4.9606,182.5,182.39,12.98042494]
[1736820223547,2.7416,182.45,182.4,2.7423]
[1736820223740,4.9606,182.5,182.39,12.98042494]
[1736820223936,12.98042494,182.49,182.39,12.98042494]
[1736820224745,2.7415,182.46,182.41,2.7421]
[1736820225445,2.7418,182.45,182.4,2.7423]
[1736820226847,12.98042494,182.49,182.39,12.98042494]
[1736820227047,2.7414,182.47,182.42,2.7419]
[1736820232851,4.9606,182.5,182.42,12.98042494]
[1736820233045,3.3231,182.5,182.42,12.98042494]
[1736820234644,3.3231,182.5,182.39,12.98042494]
[1736820235649,2.7416,182.46,182.4,2.7422]
[1736820237144,2.7416,182.46,182.41,2.7422]
[1736820238451,14.61702494,182.49,182.36,12.98042494]
[1736820238701,12.98042494,182.46,182.36,12.98042494]
[1736820239117,2.7418,182.44,182.4,2.7423]
[1736820239250,14.61702494,182.49,182.36,12.98042494]
[1736820239751,2.7415,182.46,182.41,2.7421]
[1736820240953,3.3231,182.5,182.42,12.98042494]
[1736820241352,3.3231,182.5,182.39,12.98042494]
[1736820242049,2.7414,182.47,182.42,2.742]
[1736820243156,3.3231,182.5,182.39,12.98042494]
[1736820243355,2.7412,182.48,182.44,8.30871961]
[1736820244456,14.37281961,182.5,182.44,11.05041961]
[1736820244845,14.37281961,182.5,182.45,2.7415]
[1736820245145,3.3231,182.5,182.46,8.30871961]
[1736820245344,2.7407,182.51,182.46,8.30871961]
[1736820245548,2.7407,182.51,182.46,11.05001961]
[1736820245951,2.7405,182.53,182.48,8.30871961]
[1736820246150,8.30871961,182.54,182.48,11.04981961]
[1736820247148,2.7406,182.52,182.48,11.04981961]
[1736820247558,8.30871961,182.54,182.48,8.30871961]
[1736820247755,2.7406,182.52,182.48,11.04981961]
[1736820250065,2.7407,182.51,182.48,8.30871961]
[1736820250361,8.30871961,182.54,182.48,8.30871961]
[1736820251662,3.3271,182.56,182.48,8.30871961]
[1736820251962,3.3271,182.56,182.5,8.30871961]
[1736820252158,1.6186,182.56,182.52,8.30871961]
[1736820252357,15.16871961,182.59,182.52,8.30871961]
[1736820254062,2.74,182.56,182.52,11.04921961]
[1736820255559,11.04851961,182.57,182.53,2.7404]
[1736820256466,2.7396,182.59,182.55,2.7401]
[1736820256665,2.7396,182.59,182.54,8.30871961]
[1736820257164,2.7396,182.59,182.54,11.04901961]
[1736820257361,2.7397,182.58,182.54,11.04901961]
[1736820258169,11.04841961,182.58,182.53,2.7404]
[1736820262471,2.74,182.56,182.52,11.04921961]
[1736820262670,8.30871961,182.56,182.5,8.30871961]
[1736820263270,2.7402,182.55,182.5,11.04951961]
[1736820264769,8.30871961,182.56,182.45,1.6729]
[1736820264976,8.30871961,182.54,182.47,8.30871961]
[1736820267080,5.0039,182.62,182.51,8.30871961]
[1736820267280,8.30871961,182.57,182.51,8.30871961]
[1736820267779,2.7401,182.55,182.51,8.30871961]
[1736820269077,2.7397,182.58,182.53,11.04911961]
[1736820269284,5.0039,182.62,182.45,1.6729]
[1736820269285,8.30871961,182.61,182.45,1.6729]
[1736820269475,8.30871961,182.61,182.55,8.30871961]
[1736820269781,2.7396,182.59,182.55,8.30871961]
[1736820269984,2.7396,182.59,182.54,2.7402]
[1736820270173,5.0039,182.62,182.45,1.6729]
[1736820270174,5.0039,182.62,182.55,8.30871961]
[1736820270373,2.7392,182.61,182.57,8.30871961]
[1736820270582,3.4292,182.62,182.57,8.30871961]
[1736820271584,6.1684,182.62,182.57,11.04851961]
[1736820272486,2.7388,182.64,182.59,8.30871961]
[1736820273679,2.7388,182.64,182.59,11.04821961]
[1736820275889,2.7389,182.63,182.59,11.04821961]
[1736820276694,2.7389,182.63,182.59,8.30871961]
[1736820277991,2.7388,182.64,182.59,11.04821961]
[1736820278291,8.30871961,182.66,182.61,8.30871961]
[1736820278692,8.30871961,182.68,182.61,8.30871961]
[1736820278891,11.57881961,182.7,182.63,8.30871961]
[1736820279091,11.57881961,182.7,182.65,8.30871961]
[1736820279793,2.738,182.69,182.65,11.04731961]
[1736820279988,2.738,182.69,182.65,8.30871961]
[1736820282289,8.30871961,182.72,182.65,8.30871961]
[1736820282490,1.5925,182.74,182.65,11.04731961]
[1736820282690,8.30871961,182.72,182.65,11.04731961]
[1736820283695,2.7377,182.71,182.65,11.04731961]
[1736820284294,2.7377,182.71,182.66,2.7384]
[1736820284495,2.7377,182.71,182.67,8.30871961]
[1736820287298,2.7377,182.71,182.67,11.04701961]
[1736820288095,2.7377,182.71,182.67,8.30871961]
[1736820289499,2.7377,182.71,182.67,11.04701961]
[1736820292805,11.04641961,182.71,182.67,8.30871961]
[1736820293604,2.7377,182.71,182.67,8.30871961]
[1736820296208,2.738,182.7,182.67,8.30871961]
[1736820296509,8.30871961,182.71,182.65,8.30871961]
[1736820296710,2.7381,182.69,182.65,8.30871961]
[1736820298112,2.7383,182.67,182.63,8.30871961]
[1736820298610,8.30871961,182.69,182.63,8.30871961]
[1736820298813,2.7385,182.66,182.63,8.30871961]
[1736820299110,8.30871961,182.69,182.63,11.04761961]
[1736820299302,8.30871961,182.69,182.65,8.30871961]
[1736820299707,8.30871961,182.71,182.65,8.30871961]
[1736820300108,2.7377,182.72,182.67,8.30871961]
[1736820300307,10.46291961,182.73,182.67,8.30871961]
[1736820302610,2.7378,182.71,182.67,8.30871961]
[1736820303007,8.30871961,182.71,182.65,8.30871961]
[1736820303212,8.30871961,182.69,182.62,2.7389]
[1736820303417,8.30871961,182.67,182.62,8.30871961]
[1736820303616,2.7385,182.66,182.62,8.30871961]
[1736820303913,2.1542,182.73,182.64,8.30871961]
[1736820303914,8.30871961,182.71,182.64,8.30871961]
[1736820304108,11.04651961,182.71,182.67,8.30871961]
[1736820304418,2.7378,182.71,182.67,8.30871961]
[1736820306016,5.4703,182.89,182.69,8.30871961]
[1736820306215,10.01501961,182.79,182.75,8.30871961]
[1736820306418,10.01501961,182.79,182.67,1.9874]
[1736820306419,10.01501961,182.79,182.73,8.30871961]
[1736820306612,8.30871961,182.83,182.77,8.30871961]
[1736820307311,2.7364,182.8,182.77,8.30871961]
[1736820307908,10.5368,182.86,182.68,4.3773]
[1736820307909,8.30871961,182.81,182.68,4.3773]
[1736820308113,2.7367,182.78,182.75,8.30871961]
[1736820308307,8.30871961,182.81,182.75,8.30871961]
[1736820308505,2.7368,182.77,182.75,8.30871961]
[1736820309012,8.30871961,182.82,182.75,8.30871961]
[1736820309309,4.1368,182.86,182.76,12.93463856]
[1736820309914,2.7362,182.82,182.77,2.7368]
[1736820310412,2.7362,182.81,182.76,12.93463856]
[1736820311612,4.1368,182.86,182.76,12.93463856]
[1736820311810,4.1368,182.86,182.69,6.38]
[1736820311811,12.93463856,182.84,182.73,12.93463856]
[1736820312207,2.7363,182.81,182.74,2.7371]
[1736820312517,4.1368,182.86,182.73,12.93463856]
[1736820312915,4.1368,182.86,182.69,6.38]
[1736820313111,4.1368,182.86,182.72,12.93463856]
[1736820313618,10.4968,182.86,182.72,12.93463856]
[1736820314018,2.7364,182.81,182.75,2.737]
[1736820314214,10.4968,182.86,182.75,15.67163856]
[1736820314410,10.4968,182.86,182.72,12.93463856]
[1736820314718,12.93463856,182.8,182.69,12.93463856]
[1736820315017,2.7368,182.77,182.72,2.7375]
[1736820315215,12.93463856,182.83,182.69,12.93463856]
[1736820315816,12.93463856,182.8,182.69,12.93463856]
[1736820317818,2.7367,182.78,182.69,12.93463856]
[1736820318217,2.7362,182.81,182.76,2.7369]
[1736820321125,12.93463856,182.83,182.72,12.93463856]
[1736820321421,12.93463856,182.8,182.69,12.93463856]
[1736820321622,2.7371,182.76,182.71,2.7377]
[1736820322621,4.1368,182.86,182.69,12.93463856]
[1736820322821,4.1368,182.86,182.75,12.93463856]
[1736820323924,2.7362,182.82,182.76,2.7368]
[1736820324126,4.1368,182.86,182.76,2.7368]
[1736820324328,2.7359,182.83,182.76,2.7368]
[1736820324619,4.1368,182.86,182.76,2.7368]
[1736820325126,2.7362,182.82,182.76,2.7368]
[1736820325820,2.7362,182.81,182.76,2.7368]
[1736820327631,12.93463856,182.85,182.75,12.93463856]
[1736820327831,2.7361,182.82,182.77,2.7367]
[1736820328929,2.7362,182.81,182.76,2.7369]
[1736820329132,2.7362,182.81,182.74,12.93463856]
[1736820330126,2.7362,182.81,182.77,2.7368]
[1736820331634,12.93463856,182.82,182.68,4.3773]
[1736820331834,4.1368,182.86,182.66,12.93463856]
[1736820331835,12.93463856,182.79,182.66,12.93463856]
[1736820332128,12.93463856,182.76,182.66,12.93463856]
[1736820332432,2.7376,182.72,182.66,15.67293856]
[1736820332639,2.7376,182.72,182.63,15.02513856]
[1736820333236,2.7376,182.72,182.65,2.7385]
[1736820333434,2.7376,182.72,182.63,15.02513856]
[1736820333435,12.93463856,182.76,182.63,15.02513856]
[1736820333641,12.93463856,182.7,182.6,12.93463856]
[1736820333837,12.93463856,182.7,182.61,2.7392]
[1736820334733,1.9818,182.69,182.61,2.7392]
[1736820335232,1.9818,182.69,182.55,12.3867]
[1736820335233,12.93463856,182.67,182.55,6.0867]
[1736820335433,12.93463856,182.64,182.55,6.0867]
[1736820336729,2.7389,182.63,182.57,2.7398]
[1736820339041,12.93463856,182.64,182.56,96.7]
[1736820339342,2.7391,182.62,182.54,12.93463856]
[1736820339537,12.93463856,182.64,182.53,2.7403]
[1736820339742,14.91513856,182.61,182.48,12.93463856]
[1736820340041,2.0886,182.6,182.48,12.93463856]
[1736820341138,2.7398,182.57,182.5,2.7407]
[1736820342939,2.74,182.56,182.5,2.7407]
[1736820343538,2.7398,182.58,182.51,12.93463856]
[1736820343733,2.0886,182.6,182.51,12.93463856]
[1736820344637,2.7398,182.57,182.51,12.93463856]
[1736820347051,2.7398,182.57,182.51,15.67533856]
[1736820347746,2.0886,182.6,182.49,2.7409]
[1736820347747,2.7403,182.54,182.49,2.7409]
[1736820348143,2.7403,182.54,182.48,12.93463856]
[1736820348946,2.7397,182.58,182.52,2.7405]
[1736820349939,11.0681,182.6,182.53,2.7403]
[1736820350245,2.0886,182.6,182.51,12.93463856]
[1736820350747,2.0886,182.6,182.54,2.7401]
[1736820351342,4.8281,182.6,182.54,2.7401]
[1736820351845,2.0886,182.6,182.54,2.7401]
[1736820352042,2.7395,182.59,182.54,2.7401]
[1736820352239,2.0886,182.6,182.54,2.7401]
[1736820352639,4.828,182.6,182.54,2.7401]
[1736820352844,4.828,182.6,182.51,12.93463856]
[1736820353044,4.828,182.6,182.55,2.7401]
[1736820353845,4.7197,182.61,182.56,2.7399]
[1736820354750,1.9805,182.61,182.54,12.93463856]
[1736820354943,2.7394,182.6,182.55,2.7401]
[1736820355148,1.9805,182.61,182.55,2.7401]
[1736820355844,1.9805,182.61,182.54,15.67483856]
[1736820356650,2.7395,182.59,182.54,15.67483856]
[1736820357852,2.7397,182.58,182.52,2.7404]
[1736820358059,14.91513856,182.61,182.52,2.7404]
[1736820358250,14.91513856,182.61,182.48,12.93463856]
[1736820358447,2.7402,182.55,182.5,2.7408]
[1736820360254,12.93463856,182.58,182.48,12.93463856]
[1736820360555,12.93463856,182.55,182.45,106.87463856]
[1736820360756,19.11463856,182.55,182.45,12.93463856]
[1736820360953,19.11463856,182.55,182.46,2.7414]
[1736820362157,19.11463856,182.55,182.47,2.7413]
[1736820362356,19.11463856,182.55,182.45,12.93463856]
[1736820362556,19.11463856,182.55,182.44,4.54844884]
[1736820362758,19.11463856,182.55,182.45,2.7415]
[1736820363258,2.7409,182.5,182.45,2.7415]
[1736820366960,19.11463856,182.55,182.45,2.7415]
[1736820367155,12.93463856,182.52,182.44,4.54844884]
[1736820367359,2.0731,182.51,182.44,4.54844884]
[1736820367757,2.7413,182.48,182.44,4.54844884]
[1736820368361,2.741,182.5,182.45,2.7415]
[1736820368561,2.0731,182.51,182.44,4.54844884]
[1736820369464,2.7413,182.48,182.44,4.54844884]
[1736820369663,2.0731,182.51,182.39,14.93123856]
[1736820371062,12.93463856,182.55,182.45,12.93463856]
[1736820371365,2.7407,182.52,182.46,2.7413]
[1736820371864,2.7407,182.52,182.47,2.7412]
[1736820372066,2.7404,182.53,182.45,12.93463856]
[1736820372362,10.2732,182.56,182.48,12.93463856]
[1736820372563,10.2732,182.56,182.49,2.7409]
[1736820373362,2.7403,182.54,182.49,2.7409]
[1736820374168,2.7405,182.53,182.48,12.93463856]
[1736820374463,4.1132,182.56,182.45,12.93463856]
[1736820375464,2.7407,182.51,182.46,2.7413]
[1736820376459,4.1132,182.56,182.39,1.9966]
[1736820376460,12.93463856,182.52,182.39,1.9966]
[1736820376765,12.93463856,182.52,182.4,12.93463856]
[1736820377063,2.7416,182.46,182.4,15.67693856]
[1736820378563,12.93463856,182.49,182.4,15.67693856]
[1736820378866,15.08903856,182.49,182.38,2.7425]
[1736820379067,4.0486,182.48,182.38,2.7425]
[1736820379459,12.93463856,182.46,182.34,106.93463856]
[1736820379665,12.93463856,182.43,182.31,15.05113856]
[1736820379863,19.07463856,182.43,182.31,15.05113856]
[1736820380060,12.93463856,182.4,182.3,7.62605487]
[1736820380460,12.93463856,182.37,182.27,33.2484195]
[1736820380663,6.14,182.36,182.27,30.5042195]
[1736820381470,6.14,182.36,182.26,2.1165]
[1736820381665,2.7434,182.33,182.27,2.7442]
[1736820381865,6.14,182.36,182.26,2.1165]
[1736820382071,6.14,182.36,182.25,15.04443856]
[1736820382266,12.93463856,182.34,182.25,12.93463856]
[1736820382568,12.93463856,182.34,182.23,94.04]
[1736820382762,12.93463856,182.34,182.22,12.93463856]
[1736820383165,2.7439,182.3,182.23,2.7449]
[1736820383366,12.93463856,182.34,182.22,12.93463856]
[1736820383867,2.7442,182.29,182.23,2.7449]
[1736820384970,2.7442,182.28,182.22,15.67963856]
[1736820385566,2.744,182.3,182.22,15.67963856]
[1736820385764,12.93463856,182.34,182.22,15.67963856]
[1736820386365,2.7442,182.28,182.22,15.67963856]
[1736820386573,2.7442,182.28,182.22,12.93463856]
[1736820387072,2.7445,182.26,182.22,12.93463856]
[1736820388569,2.7443,182.28,182.22,12.93463856]
[1736820389165,2.7443,182.27,182.22,12.93463856]
[1736820389469,12.93463856,182.31,182.22,12.93463856]
[1736820389669,191.0,182.35,182.25,12.93463856]
[1736820389869,2.7436,182.33,182.25,12.93463856]
[1736820390170,197.1,182.35,182.25,15.67913856]
[1736820390770,197.1,182.35,182.26,2.7443]
[1736820390966,197.1,182.35,182.25,12.93463856]
[1736820391169,6.1,182.35,182.28,12.93463856]
[1736820391565,2.7431,182.35,182.28,12.93463856]
[1736820393076,2.7431,182.35,182.29,2.744]
[1736820393675,6.1,182.37,182.29,2.744]
[1736820393876,2.7433,182.34,182.29,2.744]
[1736820394271,1.9922,182.38,182.28,12.93463856]
[1736820394480,6.08,182.4,182.31,12.93463856]
[1736820394777,12.93463856,182.38,182.25,12.93463856]
[1736820395872,12.93463856,182.38,182.28,2.7441]
[1736820396272,12.93463856,182.38,182.25,12.93463856]
[1736820396472,2.7431,182.36,182.3,2.7438]
[1736820396869,2.7431,182.35,182.3,2.7438]
[1736820397075,19.01463856,182.38,182.28,12.93463856]
[1736820397375,19.01463856,182.38,182.29,2.744]
[1736820397871,6.08,182.41,182.31,12.93463856]
[1736820398077,17.06333856,182.39,182.28,12.93463856]
[1736820398276,2.7433,182.34,182.29,2.744]
[1736820398975,17.06333856,182.39,182.21,2.0994]
[1736820398976,12.93463856,182.36,182.25,12.93463856]
[1736820399168,12.93463856,182.33,182.22,12.93463856]
[1736820399969,2.7438,182.31,182.24,2.7446]
[1736820400172,12.93463856,182.36,182.22,12.93463856]
[1736820400375,6.06,182.35,182.22,12.93463856]
[1736820401781,6.06,182.35,182.25,12.93463856]
[1736820403179,2.7434,182.33,182.28,2.7442]
[1736820403777,8.8031,182.35,182.3,2.7438]
[1736820404080,8.8031,182.35,182.28,12.93463856]
[1736820404081,6.06,182.35,182.28,12.93463856]
[1736820404283,2.743,182.36,182.3,2.7438]
[1736820404582,2.743,182.36,182.28,12.93463856]
[1736820404980,2.7434,182.33,182.28,15.67863856]
[1736820409479,2.7437,182.31,182.26,2.7443]
[1736820409873,12.93463856,182.36,182.25,12.93463856]
[1736820410280,2.7436,182.32,182.27,2.7443]
[1736820412187,12.93463856,182.36,182.25,12.93463856]
[1736820412377,2.7438,182.31,182.25,15.67913856]
[1736820413184,2.7439,182.3,182.25,2.7445]
[1736820413585,2.7437,182.31,182.26,2.7444]
[1736820413786,2.0687,182.35,182.25,12.93463856]
[1736820414387,12.93463856,182.36,182.25,12.93463856]
[1736820415087,2.7431,182.35,182.3,2.7438]
[1736820415488,12.93463856,182.36,182.21,2.0994]
[1736820415681,12.93463856,182.36,182.24,12.93463856]
[1736820415886,2.7437,182.32,182.27,2.7443]
[1736820416086,2.7437,182.32,182.24,12.93463856]
[1736820416790,2.7437,182.32,182.21,2.0994]
[1736820416989,2.7438,182.31,182.22,12.93463856]
[1736820417490,12.93463856,182.36,182.22,12.93463856]
[1736820417686,12.93463856,182.33,182.22,12.93463856]
[1736820418191,12.93463856,182.33,182.22,2.7449]